bitfinex/quotes_BTCUSD_20250119
["timestamp","ask_amount","ask_price","bid_price","bid_amount"]
[1737302933081,0.72328825,104820.0,104810.0,0.00094866]
[1737302933650,0.74193787,104820.0,104810.0,0.00094866]
[1737302935126,0.65661949,104820.0,104810.0,0.00094866]
[1737302935515,0.75661949,104820.0,104810.0,0.00094866]
[1737302936102,0.69382913,104820.0,104810.0,0.00094866]
[1737302936307,0.75661949,104820.0,104810.0,0.00094866]
[1737302936491,0.69382913,104820.0,104810.0,0.00094866]
[1737302936898,0.60408547,104820.0,104810.0,0.00094866]
[1737302937122,0.60232684,104820.0,104810.0,0.00094866]
[1737302937497,0.70232684,104820.0,104810.0,0.00094866]
[1737302941829,0.7651172,104820.0,104810.0,0.00094866]
[1737302942476,0.76686274,104820.0,104810.0,0.00094866]
[1737302943316,0.75830274,104820.0,104810.0,0.00094866]
[1737302943522,0.70407238,104820.0,104810.0,0.00094866]
[1737302943875,0.76686274,104820.0,104810.0,0.00094866]
[1737302944944,0.70407238,104820.0,104810.0,0.00094866]
[1737302945443,0.60407238,104820.0,104810.0,0.00094866]
[1737302945580,0.70407238,104820.0,104810.0,0.00094866]
[1737302945982,0.76686274,104820.0,104810.0,0.00094866]
[1737302947033,0.70407238,104820.0,104810.0,0.00094866]
[1737302947227,0.76686274,104820.0,104810.0,0.00094866]
[1737302947897,0.66686274,104820.0,104810.0,0.00094866]
[1737302948077,0.66686274,104820.0,104810.0,6.6e-07]
[1737302949777,0.75218112,104820.0,104810.0,6.6e-07]
[1737302950095,0.11841,104810.0,104800.0,0.0008582]
[1737302950295,0.28837894,104810.0,104800.0,0.0008582]
[1737302950498,0.28742214,104810.0,104800.0,0.0008582]
[1737302950929,0.79852658,104830.0,104820.0,0.57999935]
[1737302951124,1.03190811,104830.0,104820.0,0.48459935]
[1737302952057,0.51999783,104830.0,104820.0,0.48459935]
[1737302952307,0.52959073,104830.0,104820.0,0.48459935]
[1737302952924,0.70259073,104830.0,104820.0,0.48459935]
[1737302953331,0.72123463,104830.0,104820.0,0.48459935]
[1737302953508,0.72128455,104830.0,104820.0,0.48459935]
[1737302953710,1.42128455,104830.0,104820.0,0.48459935]
[1737302953923,1.54698455,104830.0,104820.0,0.48459935]
[1737302954155,1.5853229,104830.0,104820.0,0.4484161]
[1737302954412,1.5853229,104830.0,104820.0,0.4148461]
[1737302954857,0.8853229,104830.0,104820.0,0.4148461]
[1737302955284,1.01330047,104830.0,104820.0,0.3576061]
[1737302955532,1.01330047,104830.0,104820.0,0.2846661]
[1737302955740,1.01330047,104830.0,104820.0,0.1866551]
[1737302956236,1.01330047,104830.0,104820.0,0.0912551]
[1737302956592,1.01214786,104830.0,104820.0,0.0912551]
[1737302956884,1.18278462,104830.0,104820.0,0.0912551]
[1737302957042,1.18278462,104830.0,104820.0,0.0721751]
[1737302957579,1.18278462,104830.0,104820.0,1e-07]
[1737302957710,1.88278462,104830.0,104820.0,1e-07]
[1737302957910,1.968103,104830.0,104820.0,1e-07]
[1737302958364,0.39411,104810.0,104800.0,0.0008582]
[1737302958566,0.55614117,104810.0,104800.0,0.0008582]
[1737302958772,0.56092824,104810.0,104800.0,0.0008582]
[1737302960344,0.51222824,104810.0,104800.0,0.0008582]
[1737302960500,0.81907693,104810.0,104800.0,0.0008582]
[1737302960943,0.84207693,104810.0,104800.0,0.0008582]
[1737302961658,0.47610908,104810.0,104800.0,0.0008582]
[1737302962017,0.62610908,104810.0,104800.0,0.0008582]
[1737302962218,0.64910908,104810.0,104800.0,0.0008582]
[1737302963142,0.65766908,104810.0,104800.0,0.0008582]
[1737302963914,0.66745729,104810.0,104800.0,0.0008582]
[1737302964115,0.68622073,104810.0,104800.0,0.0008582]
[1737302964321,0.85661312,104810.0,104800.0,0.0008582]
[1737302965333,0.70661312,104810.0,104800.0,0.0008582]
[1737302965733,0.68616244,104810.0,104800.0,0.0008582]
[1737302967008,0.72905422,104810.0,104800.0,0.0008582]
[1737302969717,1.19389936,104810.0,104800.0,0.0008582]
[1737302970730,0.76143411,104810.0,104800.0,0.0008582]
[1737302971908,1.19389936,104810.0,104800.0,0.0008582]
[1737302976445,1.194799,104810.0,104800.0,0.0008582]
[1737302978632,1.29328062,104810.0,104800.0,0.0008582]
[1737302979395,1.38463017,104810.0,104800.0,0.0008582]
[1737302979625,1.09629514,104810.0,104800.0,0.0008582]
[1737302979892,1.03350478,104810.0,104800.0,0.0008582]
[1737302980360,0.95150478,104810.0,104800.0,0.0008582]
[1737302981237,1.41763336,104810.0,104800.0,0.0008582]
[1737302981407,1.42619336,104810.0,104800.0,0.0008582]
[1737302981640,1.42619336,104810.0,104800.0,2.657e-05]
[1737302981844,1.32619336,104810.0,104800.0,2.657e-05]
[1737302982266,1.42619336,104810.0,104800.0,2.657e-05]
[1737302982458,1.32619336,104810.0,104800.0,2.657e-05]
[1737302982675,0.90570478,104810.0,104800.0,2.657e-05]
[1737302983301,0.98770478,104810.0,104800.0,2.657e-05]
[1737302983502,1.05049514,104810.0,104800.0,2.657e-05]
[1737302983876,0.98770478,104810.0,104800.0,2.657e-05]
[1737302984805,1.40819336,104810.0,104800.0,2.657e-05]
[1737302985010,1.50743417,104810.0,104800.0,2.657e-05]
[1737302985385,1.57022453,104810.0,104800.0,2.657e-05]
[1737302985594,1.345403,104810.0,104800.0,2.657e-05]
[1737302985768,1.40819336,104810.0,104800.0,2.657e-05]
[1737302985991,0.095419,104800.0,104790.0,0.00089754]
[1737302986191,0.28140697,104800.0,104790.0,0.00089754]
[1737302986402,0.28552945,104800.0,104790.0,0.00089754]
[1737302986643,0.38552945,104800.0,104790.0,0.00089754]
[1737302987025,0.54408945,104800.0,104790.0,0.00089754]
[1737302988606,0.9765547,104800.0,104790.0,0.00089754]
[1737302989040,0.9764674,104800.0,104790.0,0.00089754]
[1737302989966,1.07570821,104800.0,104790.0,0.00089754]
[1737302990125,0.8764674,104800.0,104790.0,0.00089754]
[1737302990546,0.93925776,104800.0,104790.0,0.00089754]
[1737302990965,0.8764674,104800.0,104790.0,0.00089754]
[1737302991446,0.93925776,104800.0,104790.0,0.00089754]
[1737302992051,0.98585776,104800.0,104790.0,0.00089754]
[1737302992320,1.08509857,104800.0,104790.0,0.00089754]
[1737302992773,0.98585776,104800.0,104790.0,0.00089754]
[1737302993615,1.40634634,104800.0,104790.0,0.00089754]
[1737302994029,1.40634634,104800.0,104790.0,3.618e-05]
[1737302997592,1.34355598,104800.0,104790.0,3.618e-05]
[1737303000124,1.40634634,104800.0,104790.0,3.618e-05]
[1737303000331,1.40634634,104800.0,104770.0,0.00089796]
[1737303000332,0.2521,104790.0,104770.0,0.00089796]
[1737303000528,0.2521,104790.0,104750.0,0.08125765]
[1737303000529,0.195456,104760.0,104750.0,0.08125765]
[1737303000694,0.39000397,104760.0,104750.0,0.08125765]
[1737303000890,0.39403781,104760.0,104750.0,0.08125765]
[1737303001111,0.52710577,104760.0,104750.0,0.00175765]
[1737303001327,0.50682817,104760.0,104750.0,0.00175765]
[1737303001520,0.50682817,104760.0,104750.0,0.00225777]
[1737303002122,0.79590652,104760.0,104750.0,0.00225777]
[1737303002656,0.84250652,104760.0,104750.0,0.00225777]
[1737303003587,0.98589342,104760.0,104750.0,0.00225777]
[1737303003952,0.99546735,104760.0,104750.0,0.00225777]
[1737303004085,1.09470816,104760.0,104750.0,0.00225777]
[1737303004494,1.11400126,104760.0,104750.0,0.00225777]
[1737303005098,0.68153601,104760.0,104750.0,0.00225777]
[1737303005334,0.68153601,104760.0,104750.0,0.00014216]
[1737303005516,0.5822952,104760.0,104750.0,0.00014216]
[1737303006322,1.01476045,104760.0,104750.0,0.00014216]
[1737303007350,1.30289227,104760.0,104750.0,0.00014216]
[1737303008019,0.245474,104740.0,104730.0,0.00089796]
[1737303008139,0.49329553,104740.0,104730.0,0.00104111]
[1737303008351,0.43470948,104740.0,104730.0,0.00104111]
[1737303008548,0.49749984,104740.0,104730.0,0.00104111]
[1737303009200,0.54619984,104740.0,104730.0,0.00104111]
[1737303010019,1.01121793,104740.0,104730.0,0.00104111]
[1737303010489,1.02108142,104740.0,104730.0,0.00104111]
[1737303011543,0.80779851,104740.0,104730.0,0.00104111]
[1737303012921,0.82705085,104740.0,104730.0,1.1e-07]
[1737303013127,1.00269166,104740.0,104730.0,1.1e-07]
[1737303014344,0.118483,104730.0,104720.0,0.00085891]
[1737303014556,0.118483,104730.0,104720.0,0.00100898]
[1737303014557,0.34426133,104730.0,104720.0,0.00100898]
[1737303014811,0.34330453,104730.0,104720.0,0.00100898]
[1737303015436,0.34330453,104730.0,104720.0,0.00096898]
[1737303015998,0.72602755,104730.0,104720.0,0.00096898]
[1737303017426,0.72602755,104730.0,104700.0,0.0811988]
[1737303017427,0.195501,104710.0,104700.0,0.0811988]
[1737303017647,0.44427933,104710.0,104700.0,0.0811988]
[1737303017848,0.44427933,104710.0,104700.0,0.0008988]
[1737303017849,0.59332253,104710.0,104700.0,0.0008988]
[1737303018049,0.49332253,104710.0,104700.0,0.0008988]
[1737303019971,0.57837209,104710.0,104700.0,0.0008988]
[1737303020583,0.6776129,104710.0,104700.0,0.0008988]
[1737303020790,0.57837209,104710.0,104700.0,0.0008988]
[1737303021218,0.44266117,104710.0,104700.0,0.0811988]
[1737303021422,0.50545153,104710.0,104700.0,0.0811988]
[1737303022639,0.44266117,104710.0,104700.0,0.0811988]
[1737303022864,0.51401153,104710.0,104700.0,0.0811988]
[1737303023062,0.61325234,104710.0,104700.0,0.0811988]
[1737303024279,0.60469234,104710.0,104700.0,0.0811988]
[1737303024586,0.55046198,104710.0,104700.0,0.0811988]
[1737303024739,0.61325234,104710.0,104700.0,0.0811988]
[1737303026168,0.55046198,104710.0,104700.0,0.0811988]
[1737303026367,0.61325234,104710.0,104700.0,0.0811988]
[1737303027447,0.55046198,104710.0,104700.0,0.0811988]
[1737303028668,0.37987081,104710.0,104700.0,0.0811988]
[1737303028875,0.20687081,104710.0,104700.0,0.1289988]
[1737303029100,0.52917797,104710.0,104700.0,0.1289988]
[1737303029301,0.52822117,104710.0,104700.0,0.1289988]
[1737303029508,0.55122117,104710.0,104700.0,0.1289988]
[1737303030035,0.55122117,104710.0,104700.0,0.13497468]
[1737303031980,0.55571197,104710.0,104700.0,0.13497468]
[1737303032194,0.55571197,104710.0,104700.0,0.08717468]
[1737303032420,0.51850233,104710.0,104700.0,0.00687468]
[1737303033166,0.45571197,104710.0,104700.0,0.00687468]
[1737303033333,0.45571197,104710.0,104700.0,0.0008988]
[1737303033655,0.51850233,104710.0,104700.0,0.0008988]
[1737303034069,0.45571197,104710.0,104700.0,0.0008988]
[1737303035342,0.51850233,104710.0,104700.0,0.0008988]
[1737303036044,0.45571197,104710.0,104700.0,0.0008988]
[1737303036508,0.47450317,104710.0,104700.0,0.0008988]
[1737303036887,0.53729353,104710.0,104700.0,0.0008988]
[1737303037457,0.47450317,104710.0,104700.0,0.0008988]
[1737303037915,0.63653434,104710.0,104700.0,0.0008988]
[1737303038836,0.7215839,104710.0,104700.0,0.0008988]
[1737303039933,0.84915824,104710.0,104700.0,0.0008988]
[1737303040582,0.78712707,104710.0,104700.0,0.0008988]
[1737303041582,0.78712707,104710.0,104700.0,0.0811988]
[1737303041762,1.16985009,104710.0,104700.0,0.0811988]
[1737303042090,1.56129009,104710.0,104700.0,0.0811988]
[1737303042401,1.56985009,104710.0,104700.0,0.1273988]
[1737303042888,1.56985009,104710.0,104700.0,0.13337495]
[1737303042889,1.68712707,104710.0,104700.0,0.13337495]
[1737303044486,1.85722619,104710.0,104700.0,0.13337495]
[1737303045073,1.956467,104710.0,104700.0,0.13337495]
[1737303046197,2.1690909,104710.0,104700.0,0.13337495]
[1737303046854,2.1690909,104710.0,104700.0,0.1273988]
[1737303047445,2.07433001,104710.0,104700.0,0.1273988]
[1737303047786,1.69160699,104710.0,104700.0,0.1273988]
[1737303048851,1.94754648,104710.0,104700.0,0.1273988]
[1737303050671,1.69160699,104710.0,104700.0,0.1273988]
[1737303051747,1.53304699,104710.0,104700.0,0.1273988]
[1737303051922,1.78898648,104710.0,104700.0,0.1273988]
[1737303052159,1.79754648,104710.0,104700.0,0.1273988]
[1737303053346,1.58492258,104710.0,104700.0,0.1273988]
[1737303056686,1.8730544,104710.0,104700.0,0.1273988]
[1737303057617,1.81026404,104710.0,104700.0,0.1273988]
[1737303057873,1.71102323,104710.0,104700.0,0.1273988]
[1737303058005,1.76525359,104710.0,104700.0,0.1273988]
[1737303058212,1.77381359,104710.0,104700.0,0.1273988]
[1737303058424,1.48568177,104710.0,104700.0,0.1273988]
[1737303058630,1.46689057,104710.0,104700.0,0.1273988]
[1737303059806,1.6809435,104710.0,104700.0,0.1273988]
[1737303060582,1.95909119,104710.0,104700.0,0.0811988]
[1737303060792,1.91506969,104710.0,104700.0,0.0008988]
[1737303061002,1.81380712,104710.0,104700.0,0.0008988]
[1737303062221,1.84599945,104710.0,104700.0,0.0008988]
[1737303063536,1.55786763,104710.0,104700.0,0.0008988]
[1737303064878,1.55452567,104710.0,104700.0,0.0008988]
[1737303065825,1.53840915,104710.0,104700.0,0.0008988]
[1737303067359,1.57561879,104710.0,104700.0,0.0008988]
[1737303067562,1.53840915,104710.0,104700.0,0.0008988]
[1737303068272,1.41282843,104710.0,104700.0,0.0008988]
[1737303068477,1.53840915,104710.0,104700.0,0.0008988]
[1737303068805,1.63764996,104710.0,104700.0,0.0008988]
[1737303069417,2.05813854,104710.0,104700.0,0.0008988]
[1737303070188,1.95889773,104710.0,104700.0,0.0008988]
[1737303070603,1.53840915,104710.0,104700.0,0.0008988]
[1737303071015,1.53836915,104710.0,104700.0,0.0008988]
[1737303074331,1.47557879,104710.0,104700.0,0.0008988]
[1737303075140,1.53836915,104710.0,104700.0,0.0008988]
[1737303075341,1.61797596,104710.0,104700.0,0.0008988]
[1737303076935,2.03846454,104710.0,104700.0,0.0008988]
[1737303078583,1.89606737,104710.0,104700.0,0.0008988]
[1737303078992,1.99606737,104710.0,104700.0,0.0008988]
[1737303079197,1.98754737,104710.0,104700.0,0.0008988]
[1737303079400,1.88754737,104710.0,104700.0,0.0008988]
[1737303079606,1.89606737,104710.0,104700.0,0.0008988]
[1737303081135,1.47557879,104710.0,104700.0,0.0008988]
[1737303081319,1.57557879,104710.0,104700.0,0.0008988]
[1737303082006,1.47557879,104710.0,104700.0,0.0008988]
[1737303082406,1.57557879,104710.0,104700.0,0.0008988]
[1737303085212,1.63760996,104710.0,104700.0,0.0008988]
[1737303085813,1.53836915,104710.0,104700.0,0.0008988]
[1737303085987,1.47557879,104710.0,104700.0,0.0008988]
[1737303086171,1.57557879,104710.0,104700.0,0.0008988]
[1737303086371,1.47557879,104710.0,104700.0,0.0008988]
[1737303087039,1.57557879,104710.0,104700.0,0.0008988]
[1737303087988,1.47557879,104710.0,104700.0,0.0008988]
[1737303088648,1.47557879,104710.0,104700.0,0.0764988]
[1737303089126,1.46705879,104710.0,104700.0,0.0764988]
[1737303089337,1.13202762,104710.0,104700.0,0.2199088]
[1737303090271,1.13202762,104710.0,104700.0,0.1243988]
[1737303090478,1.48404641,104710.0,104700.0,0.1243988]
[1737303090708,1.60628722,104710.0,104700.0,0.1243988]
[1737303091778,1.5741573,104710.0,104700.0,0.1243988]
[1737303093311,1.5826773,104710.0,104700.0,0.1243988]
[1737303093672,1.51988694,104710.0,104700.0,0.1243988]
[1737303093831,1.5826773,104710.0,104700.0,0.1243988]
[1737303094037,1.5826773,104710.0,104700.0,0.0764988]
[1737303094244,1.7326773,104710.0,104700.0,0.0764988]
[1737303094674,2.02190573,104710.0,104700.0,0.0764988]
[1737303095797,1.76480722,104710.0,104700.0,0.0764988]
[1737303096007,1.76486822,104710.0,104700.0,0.0764988]
[1737303097951,1.60283705,104710.0,104700.0,0.1243988]
[1737303098122,1.59431705,104710.0,104700.0,0.1243988]
[1737303098353,1.85165635,104710.0,104700.0,0.1243988]
[1737303098559,1.91444671,104710.0,104700.0,0.1243988]
[1737303098940,2.01368752,104710.0,104700.0,0.1243988]
[1737303099152,2.17647788,104710.0,104700.0,0.0008988]
[1737303099416,2.22197788,104710.0,104700.0,0.0008988]
[1737303099868,1.93274945,104710.0,104700.0,0.0008988]
[1737303100275,1.86995909,104710.0,104700.0,0.0008988]
[1737303100483,1.93274945,104710.0,104700.0,0.0008988]
[1737303100676,1.86995909,104710.0,104700.0,0.0008988]
[1737303100955,1.61638818,104710.0,104700.0,0.0008988]
[1737303101181,1.67917854,104710.0,104700.0,0.0008988]
[1737303101319,1.71878787,104710.0,104700.0,0.0008988]
[1737303102254,1.67917854,104710.0,104700.0,0.0008988]
[1737303104309,1.61638818,104710.0,104700.0,0.0008988]
[1737303106330,1.47088818,104710.0,104700.0,0.0008988]
[1737303106527,1.45640818,104710.0,104700.0,0.0764988]
[1737303107657,1.47940818,104710.0,104700.0,0.0764988]
[1737303107831,1.49784494,104710.0,104700.0,0.0764988]
[1737303108411,1.47940818,104710.0,104700.0,0.0764988]
[1737303108791,1.76902648,104710.0,104700.0,0.0764988]
[1737303111571,1.86902648,104710.0,104700.0,0.0764988]
[1737303112689,1.866656,104710.0,104700.0,0.0764988]
[1737303114080,1.5770377,104710.0,104700.0,0.0008988]
[1737303114412,1.67542743,104710.0,104700.0,0.0008988]
[1737303114846,1.62112806,104710.0,104700.0,0.0008988]
[1737303115236,1.66662806,104710.0,104700.0,0.0008988]
[1737303116850,2.08711664,104710.0,104700.0,0.0008988]
[1737303117052,2.78711664,104710.0,104700.0,0.0008988]
[1737303118112,3.33301507,104710.0,104700.0,0.0008988]
[1737303118693,2.63301507,104710.0,104700.0,0.0008988]
[1737303120048,2.53377426,104710.0,104700.0,0.0008988]
[1737303120233,2.63301507,104710.0,104700.0,0.0008988]
[1737303121187,2.48301507,104710.0,104700.0,0.0008988]
[1737303121591,3.18301507,104710.0,104700.0,0.0008988]
[1737303121828,0.09552,104690.0,104680.0,0.0808283]
[1737303122027,0.28150797,104690.0,104680.0,0.0808283]
[1737303122211,0.28755015,104690.0,104680.0,0.0808283]
[1737303123085,0.57668281,104690.0,104680.0,0.08097845]
[1737303123296,0.58520281,104690.0,104680.0,0.08097845]
[1737303123487,0.56220281,104690.0,104680.0,0.08097845]
[1737303125266,0.55368281,104690.0,104680.0,0.08097845]
[1737303125478,0.56220281,104690.0,104680.0,0.08097845]
[1737303126326,0.74775648,104690.0,104680.0,0.12697845]
[1737303127813,0.26386301,104690.0,104680.0,0.52250745]
[1737303128462,0.26386301,104690.0,104680.0,0.62174826]
[1737303128899,0.52061014,104690.0,104680.0,0.62174826]
[1737303129281,0.52061014,104690.0,104680.0,0.62473612]
[1737303130040,0.00699898,104690.0,104680.0,0.62473612]
[1737303132257,0.59121717,104700.0,104690.0,0.15]
[1737303132472,0.59121717,104700.0,104690.0,0.51902]
[1737303133522,0.21400982,104700.0,104690.0,0.51902]
[1737303134686,1.6726814,104710.0,104700.0,0.47401]
[1737303135590,1.54446676,104710.0,104700.0,0.47401]
[1737303136240,1.4816764,104710.0,104700.0,0.47401]
[1737303136396,1.54446676,104710.0,104700.0,0.3785]
[1737303136963,1.54446676,104710.0,104700.0,0.37802042]
[1737303137366,1.54446676,104710.0,104700.0,0.47353042]
[1737303137594,1.54446676,104710.0,104700.0,0.37802042]
[1737303139403,1.64370757,104710.0,104700.0,0.37802042]
[1737303139612,1.64370757,104710.0,104700.0,0.22802042]
[1737303140223,1.64370757,104710.0,104700.0,0.22699102]
[1737303141061,1.64364739,104710.0,104700.0,0.22699102]
[1737303141795,1.64364739,104710.0,104700.0,0.21699102]
[1737303142335,1.58085703,104710.0,104700.0,0.21699102]
[1737303143687,1.70916688,104710.0,104700.0,0.21699102]
[1737303145552,1.77195724,104710.0,104700.0,0.21699102]
[1737303149818,1.85745311,104710.0,104700.0,0.21699102]
[1737303150617,1.77195724,104710.0,104700.0,0.21699102]
[1737303151035,0.09551,104700.0,104690.0,0.2767285]
[1737303151367,0.32128833,104700.0,104690.0,0.0817285]
[1737303151570,0.32033153,104700.0,104690.0,0.0004285]
[1737303152269,0.25754117,104700.0,104690.0,0.0004285]
[1737303153630,0.64269453,104700.0,104690.0,0.0004285]
[1737303154314,0.65448053,104700.0,104690.0,0.0004285]
[1737303154979,0.49244936,104700.0,104690.0,0.2816285]
[1737303155193,0.22573564,104700.0,104690.0,0.3771485]
[1737303156136,0.31128772,104700.0,104690.0,0.3771485]
[1737303156368,0.09733808,104700.0,104690.0,0.3771485]
[1737303157322,0.08555208,104700.0,104690.0,0.3771485]
[1737303160407,1.68122835,104710.0,104690.0,0.3771485]
[1737303160612,1.55300371,104710.0,104690.0,0.5681835]
[1737303160984,1.36198871,104710.0,104700.0,0.0813]
[1737303161641,1.00096086,104710.0,104700.0,0.32681]
[1737303161811,1.09646186,104710.0,104700.0,0.47681]
[1737303162452,1.60976954,104710.0,104700.0,0.47681]
[1737303163612,1.1819932,104710.0,104700.0,0.47681]
[1737303166094,1.24478356,104710.0,104700.0,0.47681]
[1737303166732,1.37311048,104710.0,104700.0,0.47681]
[1737303167356,1.37311048,104710.0,104700.0,0.3813]
[1737303167974,1.24478356,104710.0,104700.0,0.3813]
[1737303169029,1.24478356,104710.0,104700.0,0.2313]
[1737303169233,1.37311048,104710.0,104700.0,0.0813]
[1737303169409,1.37311048,104710.0,104700.0,0.15]
[1737303169916,1.56412348,104710.0,104700.0,0.15]
[1737303170685,1.73524598,104710.0,104700.0,0.15]
[1737303172695,1.63974498,104710.0,104700.0,0.15]
[1737303172918,1.63974498,104710.0,104690.0,0.2814285]
[1737303173112,0.18898126,104700.0,104690.0,0.2814285]
[1737303173313,0.15925716,104700.0,104690.0,0.2315285]
[1737303173521,0.15830036,104700.0,104690.0,0.2315285]
[1737303173735,0.15925716,104700.0,104690.0,0.2315285]
[1737303174617,0.68430012,104700.0,104690.0,0.2315285]
[1737303174819,0.68334332,104700.0,104690.0,0.2315285]
[1737303175181,0.62055296,104700.0,104690.0,0.2315285]
[1737303178032,0.61866059,104700.0,104690.0,0.2315285]
[1737303180774,0.68145095,104700.0,104690.0,0.2315285]
[1737303182565,0.5530508,104700.0,104690.0,0.2315285]
[1737303183088,0.5414864,104700.0,104690.0,0.2315285]
[1737303183395,0.38507841,104700.0,104690.0,0.3270485]
[1737303183577,0.38507841,104700.0,104690.0,0.3760485]
[1737303183778,0.38507841,104700.0,104690.0,0.5260485]
[1737303184875,0.38507841,104700.0,104690.0,0.52903617]
[1737303185100,0.2138878,104700.0,104690.0,0.72007117]
[1737303186061,0.2138878,104700.0,104690.0,0.57007117]
[1737303186259,0.2138878,104700.0,104690.0,0.66931198]
[1737303186905,0.21478661,104700.0,104690.0,0.66931198]
[1737303187681,0.08645393,104700.0,104690.0,0.66931198]
[1737303189095,0.00089881,104700.0,104690.0,0.66931198]
[1737303190691,0.08645393,104700.0,104690.0,0.66931198]
[1737303191075,0.08645393,104700.0,104690.0,0.81931198]
[1737303191686,0.00089881,104700.0,104690.0,0.81931198]
[1737303192685,0.00896253,104700.0,104690.0,0.81931198]
[1737303194676,0.00235229,104700.0,104690.0,0.81931198]
[1737303194795,0.00711483,104700.0,104690.0,0.81931198]
[1737303197170,0.00711483,104700.0,104690.0,0.81632431]
[1737303197707,0.00711483,104700.0,104690.0,1.08932431]
[1737303197884,0.00711483,104700.0,104690.0,1.15211467]
[1737303198087,0.00711483,104700.0,104690.0,1.08932431]
[1737303199389,0.00801364,104700.0,104690.0,1.08932431]
[1737303199552,0.00801364,104700.0,104690.0,1.3475968]
[1737303200582,0.00801364,104700.0,104690.0,1.4975968]
[1737303200800,0.00801364,104700.0,104690.0,1.3475968]
[1737303201227,0.00801364,104700.0,104690.0,0.81632431]
[1737303202039,0.00801364,104700.0,104690.0,0.81931174]
[1737303212352,0.00801364,104700.0,104690.0,0.77031174]
[1737303213410,0.00801364,104700.0,104690.0,0.57927674]
[1737303213582,0.070804,104700.0,104690.0,0.42927674]
[1737303213807,0.070804,104700.0,104690.0,0.57927674]
[1737303215894,0.00801364,104700.0,104690.0,0.57927674]
[1737303216979,0.070804,104700.0,104690.0,0.33003593]
[1737303217206,0.30510436,104700.0,104690.0,0.00341593]
[1737303217389,0.070804,104700.0,104690.0,0.15341593]
[1737303218022,0.070804,104700.0,104690.0,0.1504285]
[1737303218243,0.2846918,104700.0,104690.0,0.2459485]
[1737303220790,0.30477482,104700.0,104690.0,0.2459485]
[1737303221150,0.22190144,104700.0,104690.0,0.2459485]
[1737303222261,0.22173098,104700.0,104690.0,0.2459485]
[1737303222627,0.39293119,104700.0,104690.0,0.2459485]
[1737303224793,0.39293119,104700.0,104690.0,0.3245485]
[1737303226183,0.0933983,104700.0,104690.0,0.3245485]
[1737303226621,0.0933983,104700.0,104690.0,0.465226]
[1737303227364,0.0933983,104700.0,104690.0,0.615226]
[1737303227567,0.00784318,104700.0,104690.0,0.615226]
[1737303227778,0.00784318,104700.0,104690.0,0.68921353]
[1737303227931,0.00784318,104700.0,104690.0,0.78921353]
[1737303228738,0.00784318,104700.0,104690.0,0.64777684]
[1737303229997,0.00784318,104700.0,104690.0,0.64478931]
[1737303230964,0.00784318,104700.0,104690.0,0.6561574]
[1737303231820,0.00784318,104700.0,104690.0,0.57378931]
[1737303232780,0.00784318,104700.0,104690.0,0.57677694]
[1737303233246,0.00784318,104700.0,104690.0,0.39893613]
[1737303233583,0.09340833,104700.0,104690.0,0.39893613]
[1737303234990,0.22175606,104700.0,104690.0,0.39893613]
[1737303237630,0.22175606,104700.0,104690.0,0.47493613]
[1737303238428,0.09340833,104700.0,104690.0,0.47493613]
[1737303239530,0.09340833,104700.0,104690.0,0.57417694]
[1737303241325,0.09340833,104700.0,104690.0,0.62097694]
[1737303242999,0.09340833,104700.0,104690.0,0.61798931]
[1737303243210,0.00784318,104700.0,104690.0,0.61798931]
[1737303244367,0.00784318,104700.0,104690.0,0.62896551]
[1737303245566,0.00784318,104700.0,104690.0,0.69208276]
[1737303246830,0.00784318,104700.0,104690.0,0.62896551]
[1737303249066,0.00784318,104700.0,104690.0,0.69208276]
[1737303252820,0.00784318,104700.0,104690.0,0.67037916]
[1737303255357,0.00784318,104700.0,104690.0,0.94337916]
[1737303256678,0.00784318,104700.0,104690.0,1.02928508]
[1737303258593,0.00784318,104700.0,104690.0,0.86487143]
[1737303258800,0.00784318,104700.0,104690.0,0.90628508]
[1737303259884,0.00784318,104700.0,104690.0,0.82037916]
[1737303267068,0.00784318,104700.0,104690.0,0.77357916]
[1737303270515,0.00784318,104700.0,104690.0,0.73216551]
[1737303271360,0.00784318,104700.0,104690.0,0.77357916]
[1737303274593,0.00784318,104700.0,104690.0,0.89657916]
[1737303274796,0.00784318,104700.0,104690.0,0.93799281]
[1737303274934,0.00784318,104700.0,104690.0,0.98469281]
[1737303276267,0.00784318,104700.0,104690.0,1.51654938]
[1737303277301,0.00784318,104700.0,104690.0,1.47513573]
[1737303277457,0.00784318,104700.0,104690.0,1.64694758]
[1737303278275,0.00784318,104700.0,104690.0,1.48253393]
[1737303278612,0.00784318,104700.0,104690.0,1.35983393]
[1737303279340,0.00784318,104700.0,104690.0,0.35616551]
[1737303279545,0.00784318,104700.0,104690.0,0.50616551]
[1737303279804,0.00784318,104700.0,104690.0,0.34518931]
[1737303281189,0.00784318,104700.0,104690.0,0.49817684]
[1737303281645,0.00784318,104700.0,104690.0,0.24893603]
[1737303282277,0.08724318,104700.0,104690.0,0.24893603]
[1737303284218,0.17280833,104700.0,104690.0,0.2459485]
[1737303288070,0.09340833,104700.0,104690.0,0.3229485]
[1737303289168,0.00784318,104700.0,104690.0,0.3229485]
[1737303291901,0.00784318,104700.0,104690.0,0.4853164]
[1737303292530,0.00784318,104700.0,104690.0,0.48830396]
[1737303294802,0.00784318,104700.0,104690.0,0.66130396]
[1737303295006,0.00784318,104700.0,104690.0,0.76130396]
[1737303295299,0.00784318,104700.0,104690.0,0.91130396]
[1737303295628,0.00784318,104700.0,104690.0,0.9083164]
[1737303295825,0.00784318,104700.0,104690.0,0.91906303]
[1737303296374,0.00784318,104700.0,104690.0,0.97431674]
[1737303298184,0.00784318,104700.0,104690.0,1.67782182]
[1737303300757,0.00784318,104700.0,104690.0,1.50600997]
[1737303303434,1.00096086,104710.0,104690.0,1.50600997]
[1737303303435,0.97219433,104710.0,104700.0,0.323]
[1737303303678,0.97219433,104710.0,104700.0,0.5808779]
[1737303304003,0.97696571,104710.0,104700.0,0.5808779]
[1737303304598,0.97696571,104710.0,104700.0,0.6578779]
[1737303305186,0.97696571,104710.0,104700.0,0.66503161]
[1737303309581,0.97696571,104710.0,104700.0,0.8281587]
[1737303309787,0.97696571,104710.0,104700.0,0.76503161]
[1737303313613,0.97696571,104710.0,104700.0,0.7578779]
[1737303317132,0.97696571,104710.0,104700.0,0.6078779]
[1737303317834,0.97696571,104710.0,104700.0,0.61502858]
[1737303319332,0.97696571,104710.0,104700.0,0.76502858]
[1737303320082,0.97696571,104710.0,104700.0,0.82815567]
[1737303320300,0.97696571,104710.0,104700.0,0.97815567]
[1737303323583,0.97696571,104710.0,104700.0,0.91502858]
[1737303325646,0.97696571,104710.0,104700.0,0.81502858]
[1737303326038,0.97696571,104710.0,104700.0,0.91545658]
[1737303326400,0.97696571,104710.0,104700.0,0.97858367]
[1737303329278,0.97696571,104710.0,104700.0,1.50988839]
[1737303331657,0.97696571,104710.0,104700.0,1.68170024]
[1737303332409,0.97696571,104710.0,104700.0,1.69125727]
[1737303334664,0.97696571,104710.0,104700.0,1.21500309]
[1737303334847,1.02656571,104710.0,104700.0,1.25641369]
[1737303335367,1.10876571,104710.0,104700.0,1.03052709]
[1737303335812,1.10876571,104710.0,104700.0,1.18052709]
[1737303336489,1.10876571,104710.0,104700.0,0.41264571]